bitfinex/quotes_BTCUSD_20230117
["timestamp","ask_amount","ask_price","bid_price","bid_amount"]
[1673915308378,0.077,21248.0,21247.0,0.0759]
[1673915309166,0.077,21248.0,21247.0,0.846554]
[1673915309431,0.077,21248.0,21247.0,0.3759]
[1673915309732,0.07657903,21248.0,21247.0,0.3759]
[1673915311762,0.07657903,21248.0,21247.0,0.696003]
[1673915312024,0.07657903,21248.0,21247.0,0.301]
[1673915312494,0.21761997,21248.0,21247.0,0.301]
[1673915312498,0.42919004,21248.0,21247.0,0.301]
[1673915313014,0.89982204,21248.0,21247.0,0.301]
[1673915313282,1.21992504,21248.0,21247.0,0.301]
[1673915313546,1.0788841,21248.0,21247.0,0.301]
[1673915313810,1.3609626,21248.0,21247.0,0.301]
[1673915314056,1.14939253,21248.0,21247.0,0.301]
[1673915314329,2.00731007,21248.0,21247.0,0.301]
[1673915316199,1.65470241,21248.0,21247.0,0.301]
[1673915316461,2.00731043,21248.0,21247.0,0.301]
[1673915318079,1.72523193,21248.0,21247.0,0.301]
[1673915318331,2.00708037,21248.0,21247.0,0.301]
[1673915318688,1.65447271,21248.0,21247.0,0.301]
[1673915318966,1.68617612,21248.0,21247.0,0.301]
[1673915319224,2.13617612,21248.0,21247.0,0.301]
[1673915320822,2.68123602,21248.0,21247.0,0.27090001]
[1673915321087,2.83810626,21248.0,21247.0,0.27090001]
[1673915321668,3.31376649,21248.0,21247.0,0.27090001]
[1673915321909,2.93213561,21248.0,21247.0,0.27090001]
[1673915322168,2.54647538,21248.0,21247.0,0.27090001]
[1673915322432,2.93213561,21248.0,21247.0,0.27090001]
[1673915322896,3.02313561,21248.0,21247.0,0.27090001]
[1673915322899,2.83397538,21248.0,21247.0,0.18475832]
[1673915323153,0.15,21247.0,21238.0,2.61131367]
[1673915323413,0.15,21247.0,21238.0,0.00883547]
[1673915323414,0.35223055,21241.0,21238.0,0.00883547]
[1673915323667,0.941618,21240.0,21238.0,0.00883547]
[1673915324187,0.470789,21241.0,21238.0,0.00883547]
[1673915324709,0.941576,21241.0,21238.0,0.00883547]
[1673915325544,1.031576,21241.0,21238.0,0.00883547]
[1673915326054,1.17246822,21241.0,21238.0,0.00883547]
[1673915326590,1.031576,21241.0,21238.0,0.00883547]
[1673915330202,1.35792748,21241.0,21238.0,0.00883547]
[1673915330460,1.17246822,21241.0,21238.0,0.00883547]
[1673915330975,1.031576,21241.0,21238.0,0.00883547]
[1673915332784,0.0085,21240.0,21238.0,0.00883547]
[1673915333075,0.950139,21240.0,21238.0,0.00883547]
[1673915334424,0.09,21240.0,21238.0,0.19956142]
[1673915334693,0.09,21240.0,21239.0,0.320103]
[1673915334955,0.09,21240.0,21238.0,0.00883547]
[1673915335519,0.470787,21241.0,21238.0,0.00883547]
[1673915336040,0.09,21240.0,21238.0,0.00883547]
[1673915337128,0.470787,21241.0,21238.0,0.00883547]
[1673915337440,0.09,21240.0,21238.0,0.00883547]
[1673915338228,0.470787,21241.0,21238.0,0.00883547]
[1673915338585,0.560787,21241.0,21238.0,0.00883547]
[1673915338843,0.470787,21241.0,21238.0,0.00883547]
[1673915339099,0.09,21240.0,21238.0,0.00883547]
[1673915339635,0.470787,21241.0,21238.0,0.00883547]
[1673915340425,0.560787,21241.0,21238.0,0.00883547]
[1673915344820,1.031574,21241.0,21238.0,0.00883547]
[1673915345103,0.0085,21240.0,21238.0,0.00883547]
[1673915345348,1.261765,21239.0,21238.0,0.00883547]
[1673915345598,1.270265,21239.0,21238.0,0.00883547]
[1673915346629,1.040162,21239.0,21238.0,0.00883547]
[1673915347734,0.950162,21239.0,21238.0,0.00883547]
[1673915348738,0.950162,21239.0,21238.0,0.00873966]
[1673915348739,1.270265,21239.0,21238.0,0.00873966]
[1673915349103,1.50115722,21239.0,21238.0,0.00873966]
[1673915349261,1.360265,21239.0,21238.0,0.00873966]
[1673915349791,1.270265,21239.0,21238.0,0.00873966]
[1673915350044,1.360265,21239.0,21238.0,0.00873966]
[1673915350806,1.50115722,21239.0,21238.0,0.00834076]
[1673915352297,1.360265,21239.0,21238.0,0.00834076]
[1673915352552,0.569331,21239.0,21238.0,0.00734135]
[1673915352820,0.534331,21239.0,21238.0,0.00734135]
[1673915353572,0.09,21239.0,21238.0,0.00734135]
[1673915353855,0.09,21239.0,21238.0,0.08074135]
[1673915354168,0.09,21239.0,21238.0,0.47624435]
[1673915354379,0.09,21239.0,21238.0,1.41795235]
[1673915355192,0.09,21239.0,21238.0,1.71795235]
[1673915355487,0.82296555,21244.0,21238.0,2.65992391]
[1673915355706,0.001,21239.0,21238.0,1.40584935]
[1673915355957,0.0085,21243.0,21238.0,2.65992145]
[1673915356219,0.001,21239.0,21238.0,1.1477753]
[1673915356474,0.83147455,21243.0,21238.0,1.26915235]
[1673915356745,0.62013622,21243.0,21240.0,0.0754]
[1673915356990,0.83147455,21243.0,21240.0,0.26612595]
[1673915357240,0.35223055,21242.0,21240.0,0.0754]
[1673915358296,0.14089222,21242.0,21240.0,0.0754]
[1673915358562,0.14089222,21242.0,21240.0,0.27412595]
[1673915358818,0.82296956,21244.0,21241.0,0.394803]
[1673915358819,0.35223055,21244.0,21241.0,0.394803]
[1673915359087,0.001,21242.0,21241.0,0.19072595]
[1673915359415,0.001,21242.0,21241.0,0.395203]
[1673915359885,0.14089222,21243.0,21241.0,0.395203]
[1673915360150,0.35323055,21244.0,21242.0,0.395003]
[1673915360420,0.14089222,21244.0,21243.0,0.394703]
[1673915360684,0.36073055,21244.0,21243.0,0.0746]
[1673915360936,0.14939222,21244.0,21243.0,0.0746]
[1673915361208,0.36083877,21244.0,21243.0,0.0746]
[1673915361680,0.21983833,21244.0,21243.0,0.0746]
[1673915362010,0.36083877,21244.0,21243.0,0.0746]
[1673915362460,0.21983833,21244.0,21243.0,0.0746]
[1673915362712,0.36081989,21244.0,21243.0,0.0746]
[1673915362964,0.36181989,21244.0,21243.0,0.0826]
[1673915363479,0.15048156,21244.0,21243.0,0.0826]
[1673915363748,0.001,21244.0,21243.0,0.1572]
[1673915364004,0.001,21244.0,21243.0,0.477303]
[1673915364777,0.001,21244.0,21243.0,0.948046]
[1673915365278,0.14098156,21246.0,21243.0,0.940046]
[1673915365523,0.001,21244.0,21243.0,0.553343]
[1673915365828,0.001,21244.0,21243.0,0.477703]
[1673915366290,0.35231989,21246.0,21243.0,0.469703]
[1673915366546,0.63510433,21246.0,21244.0,0.320103]
[1673915366804,0.14098156,21245.0,21243.0,0.075]
[1673915367055,0.001,21244.0,21243.0,0.083]
[1673915367302,0.35231989,21245.0,21243.0,0.075]
[1673915367570,0.14098156,21244.0,21243.0,0.075]
[1673915368082,0.14098156,21244.0,21242.0,0.0749]
[1673915368370,0.35231989,21245.0,21243.0,0.008]
[1673915368586,0.35231989,21245.0,21242.0,0.0749]
[1673915368830,0.14098156,21244.0,21242.0,0.0749]
[1673915369083,0.0744,21244.0,21243.0,0.008]
[1673915369359,1.51643485,21244.0,21238.0,0.47817835]
[1673915369667,1.51643738,21244.0,21243.0,0.008]
[1673915369885,1.42213142,21244.0,21238.0,0.47817835]
[1673915370145,0.67229193,21243.0,21242.0,0.008]
[1673915370418,0.82293193,21243.0,21242.0,0.008]
[1673915370670,1.28391286,21243.0,21242.0,0.008]
[1673915371437,1.28391286,21243.0,21240.0,0.3]
[1673915371691,0.14088313,21242.0,21240.0,0.3]
[1673915372579,0.14088313,21242.0,21240.0,0.308]
[1673915372834,0.14088313,21242.0,21240.0,0.3]
[1673915373088,0.14188313,21242.0,21240.0,0.308]
[1673915373822,0.471765,21242.0,21240.0,0.308]
[1673915373824,0.82396149,21242.0,21240.0,0.308]
[1673915375120,0.001,21242.0,21241.0,0.0754]
[1673915375376,0.001,21242.0,21241.0,0.395503]
[1673915375893,0.62012513,21244.0,21241.0,0.395503]
[1673915376161,0.83143849,21244.0,21242.0,0.0754]
[1673915376408,0.62012513,21244.0,21242.0,0.0754]
[1673915376896,0.62012513,21244.0,21241.0,0.008]
[1673915377181,0.62012513,21244.0,21240.0,0.3754]
[1673915377461,0.62112513,21244.0,21242.0,0.008]
[1673915377958,0.83243849,21244.0,21242.0,0.008]
[1673915378234,0.62112513,21244.0,21242.0,0.008]
[1673915378795,0.62012513,21244.0,21240.0,0.846208]
[1673915379016,0.62012513,21244.0,21241.0,0.0754]
[1673915379267,0.62112513,21244.0,21242.0,0.108]
[1673915379525,0.62012513,21244.0,21242.0,0.1]
[1673915379811,0.83243849,21244.0,21242.0,0.1]
[1673915380125,0.15,21243.0,21242.0,0.1]
[1673915380322,1.29304249,21243.0,21242.0,0.108]
[1673915380596,1.14304249,21243.0,21242.0,0.108]
[1673915380842,0.61162613,21243.0,21242.0,0.108]
[1673915381103,0.82293949,21243.0,21242.0,0.108]
[1673915381441,0.93172913,21243.0,21242.0,0.1]
[1673915381603,1.15154249,21243.0,21242.0,0.1]
[1673915381855,0.94122913,21243.0,21242.0,0.108]
[1673915382082,0.62112613,21243.0,21242.0,0.108]
[1673915382608,0.94122913,21243.0,21242.0,0.108]
[1673915382865,1.15254249,21243.0,21242.0,0.108]
[1673915383125,1.92431711,21243.0,21242.0,0.108]
[1673915383377,1.99479417,21243.0,21242.0,0.10790238]
[1673915383633,1.66982817,21243.0,21242.0,0.10790238]
[1673915384911,1.95162839,21243.0,21242.0,0.10790238]
[1673915385216,1.66982817,21243.0,21242.0,0.10790238]
[1673915387227,1.95166872,21243.0,21242.0,0.10790238]
[1673915387481,1.62338487,21243.0,21242.0,0.10790238]
[1673915387803,1.76430707,21243.0,21242.0,0.10790238]
[1673915387993,1.95115867,21243.0,21242.0,0.10790238]
[1673915388255,1.66931812,21243.0,21242.0,0.10790238]
[1673915388511,1.95115788,21243.0,21242.0,0.10790238]
[1673915388761,1.66931812,21243.0,21242.0,0.10790238]
[1673915389082,1.34921512,21243.0,21242.0,0.10790238]
[1673915389267,1.9944717,21243.0,21242.0,0.10790238]
[1673915389530,1.71734114,21243.0,21242.0,0.10790238]
[1673915390325,1.86734114,21243.0,21242.0,0.10790238]
[1673915391594,2.24194114,21243.0,21242.0,0.10790238]
[1673915392084,2.66461781,21243.0,21242.0,0.10790238]
[1673915392339,3.05235581,21243.0,21242.0,0.10790238]
[1673915392597,2.36461781,21243.0,21242.0,0.10790238]
[1673915393102,1.61678756,21243.0,21242.0,0.10790238]
[1673915393376,2.33946423,21243.0,21242.0,0.10790238]
[1673915393618,3.20440392,21243.0,21242.0,0.10790238]
[1673915393880,2.96136483,21243.0,21242.0,0.10790238]
[1673915394651,0.08753344,21241.0,21240.0,0.3]
[1673915394909,2.24846066,21241.0,21240.0,0.22835]
[1673915395166,2.91456222,21241.0,21240.0,0.22835]
[1673915395488,3.0836998,21241.0,21240.0,0.22835]
[1673915396207,3.13374232,21241.0,21240.0,0.23635]
[1673915396971,3.60784449,21241.0,21240.0,0.23635]
[1673915397480,3.13374232,21241.0,21240.0,0.23635]
[1673915397737,2.71088222,21241.0,21240.0,0.23635]
[1673915398233,2.63578222,21241.0,21240.0,0.23635]
[1673915399060,2.30227935,21241.0,21240.0,0.23635]
[1673915399571,2.250196,21241.0,21240.0,0.23635]
[1673915399827,3.42009085,21241.0,21240.0,0.23635]
[1673915400075,3.03450463,21241.0,21240.0,0.23635]
[1673915400318,3.42009085,21241.0,21240.0,0.23635]
[1673915401351,3.42009085,21241.0,21240.0,0.236085]
[1673915401615,3.54983244,21241.0,21240.0,0.236085]
[1673915402384,3.18838391,21241.0,21240.0,0.236085]
[1673915402634,3.61092019,21241.0,21240.0,0.236085]
[1673915402890,2.36493228,21241.0,21240.0,0.42681095]
[1673915403157,1.866996,21241.0,21240.0,0.236085]
[1673915404190,2.2180094,21241.0,21240.0,0.228085]
[1673915404523,2.3090094,21241.0,21240.0,0.228085]
[1673915404721,2.2356094,21241.0,21240.0,0.228085]
[1673915404981,2.16347185,21241.0,21240.0,0.228085]
[1673915405237,1.8903194,21241.0,21240.0,0.228085]
[1673915405494,2.24240437,21241.0,21240.0,0.228085]
[1673915406054,2.52406451,21241.0,21240.0,0.228085]
[1673915406315,2.24240437,21241.0,21240.0,0.228085]
[1673915407139,1.8903194,21241.0,21240.0,0.228085]
[1673915407893,2.2424561,21241.0,21240.0,0.228085]
[1673915408149,2.25265927,21241.0,21240.0,0.228085]
[1673915408684,1.9657194,21241.0,21240.0,0.228085]
[1673915409190,2.68825568,21241.0,21240.0,0.228085]
[1673915409694,3.0722069,21241.0,21240.0,0.19919955]
[1673915409933,2.64967062,21241.0,21240.0,0.19919955]
[1673915410182,2.2657194,21241.0,21240.0,0.19919955]
[1673915410463,2.68833156,21241.0,21240.0,0.19919955]
[1673915411028,2.2657194,21241.0,21240.0,0.19919955]
[1673915411192,2.68825821,21241.0,21240.0,0.19919955]
[1673915411433,2.2657194,21241.0,21240.0,0.19919955]
[1673915411689,2.68825164,21241.0,21240.0,0.19919955]
[1673915412178,3.1199939,21241.0,21240.0,0.19919955]
[1673915414128,2.68825164,21241.0,21240.0,0.19919955]
[1673915414384,2.68825164,21241.0,21238.0,0.00734135]
[1673915414617,0.85892199,21239.0,21238.0,0.00734135]
[1673915414864,2.63573995,21239.0,21238.0,0.00734135]
[1673915415122,2.36258573,21239.0,21238.0,0.00734135]
[1673915415620,2.01051796,21239.0,21238.0,0.00734135]
[1673915415863,2.31051796,21239.0,21238.0,0.00734135]
[1673915416147,2.01051796,21239.0,21238.0,0.00734135]
[1673915416387,2.10151796,21239.0,21238.0,0.00734135]
[1673915417391,2.40151796,21239.0,21238.0,0.00734135]
[1673915417656,3.45891691,21239.0,21238.0,0.00734135]
[1673915417903,2.72288302,21239.0,21238.0,0.00734135]
[1673915418175,3.18223424,21239.0,21238.0,0.00734135]
[1673915418420,3.94623593,21239.0,21238.0,0.00734135]
[1673915418662,4.58674915,21239.0,21238.0,0.00484437]
[1673915418909,4.1112379,21239.0,21238.0,4.37e-06]
[1673915419157,4.58650241,21239.0,21238.0,4.37e-06]
[1673915419422,4.29950241,21239.0,21238.0,4.37e-06]
[1673915419667,0.15,21238.0,21236.0,0.00833384]
[1673915419963,3.26156308,21237.0,21236.0,0.00833384]
[1673915420194,4.09089001,21237.0,21236.0,0.00833384]
[1673915420443,4.09089001,21237.0,21233.0,0.20907057]
[1673915420692,0.50291742,21234.0,21233.0,0.20907057]
[1673915420933,2.75951038,21234.0,21233.0,0.20907057]
[1673915421189,3.3408331,21234.0,21233.0,0.20907057]
[1673915421440,2.78044109,21234.0,21233.0,0.20907057]
[1673915421684,2.56426884,21234.0,21233.0,0.20907057]
[1673915421931,2.58489995,21234.0,21233.0,0.20907057]
[1673915422182,2.51451196,21234.0,21233.0,0.20907057]
[1673915422438,2.51441756,21234.0,21233.0,0.20907057]
[1673915423167,2.65517502,21234.0,21233.0,0.20907057]
[1673915423414,2.51441756,21234.0,21233.0,0.20907057]
[1673915423649,2.58480555,21234.0,21233.0,0.20907057]
[1673915423900,2.88480555,21234.0,21233.0,0.20907057]
[1673915424145,2.81442071,21234.0,21233.0,0.20907057]
[1673915424636,3.09594966,21234.0,21233.0,0.20907057]
[1673915424906,3.73803704,21234.0,21233.0,0.20907057]
[1673915425161,3.45647947,21234.0,21233.0,0.20907057]
[1673915425419,3.53187947,21234.0,21233.0,0.20907057]
[1673915425674,3.46636828,21234.0,21233.0,0.20907057]
[1673915426204,3.94356997,21234.0,21233.0,0.20907057]
[1673915426485,4.10336997,21234.0,21233.0,0.20907057]
[1673915427012,4.16901582,21234.0,21233.0,0.20907057]
[1673915427319,4.47671799,21234.0,21233.0,0.20907057]
[1673915427537,4.56771799,21234.0,21233.0,0.20907057]
[1673915428297,4.21587214,21234.0,21233.0,0.20907057]
[1673915428552,4.29127214,21234.0,21233.0,5.7e-07]
[1673915428809,0.15,21233.0,21231.0,0.00973861]
[1673915429066,2.29067848,21232.0,21231.0,0.00973861]
[1673915429313,4.04187677,21232.0,21231.0,0.00973861]
[1673915429565,3.93904319,21232.0,21231.0,0.00973861]
[1673915429833,4.33173947,21232.0,21231.0,0.00973861]
[1673915430082,4.05037842,21232.0,21231.0,0.00973861]
[1673915430853,4.14137842,21232.0,21231.0,0.00973861]
[1673915431110,4.42266332,21232.0,21231.0,0.00973861]
[1673915431366,4.1411434,21232.0,21231.0,0.008589]
[1673915431887,3.86492793,21232.0,21231.0,0.008589]
[1673915432150,0.15,21231.0,21227.0,0.00974038]
[1673915432445,2.45518193,21231.0,21227.0,0.00974038]
[1673915432680,1.49083897,21230.0,21227.0,0.00974038]
[1673915432936,0.70696415,21228.0,21227.0,0.00974038]
[1673915433197,2.99897946,21228.0,21227.0,0.00974038]
[1673915433452,3.13954996,21228.0,21227.0,0.00974038]
[1673915433712,2.99883389,21228.0,21227.0,0.00974038]
[1673915434029,3.13940843,21228.0,21227.0,0.00974038]
[1673915434280,3.23040877,21228.0,21227.0,0.00974038]
[1673915434536,3.70451094,21228.0,21227.0,0.00974038]
[1673915434802,3.84528768,21228.0,21227.0,0.00974038]
[1673915435106,3.97456692,21228.0,21227.0,0.00974038]
[1673915435381,4.11543593,21228.0,21227.0,0.00974038]
[1673915435659,3.35998644,21228.0,21227.0,0.00974038]
[1673915435918,3.73304243,21228.0,21224.0,0.0112617]
[1673915436175,0.0754,21225.0,21224.0,0.0112617]
[1673915436451,3.72014002,21225.0,21224.0,0.0112617]
[1673915436716,3.66640085,21225.0,21224.0,0.0112617]
[1673915436988,3.52590697,21225.0,21224.0,0.0112617]
[1673915437504,1.74274,21225.0,21224.0,0.0112617]
[1673915437764,1.83374,21225.0,21224.0,0.0112617]
[1673915438049,1.033284,21225.0,21224.0,0.0112617]
[1673915438593,0.942284,21225.0,21224.0,0.0112617]
[1673915439135,1.12954653,21225.0,21224.0,0.0112617]
[1673915439402,2.09396222,21225.0,21224.0,0.0112617]
[1673915439674,2.6869855,21225.0,21224.0,0.0112617]
[1673915439931,2.8533855,21225.0,21224.0,0.0112617]
[1673915440197,2.7708855,21225.0,21224.0,0.0112617]
[1673915440461,2.8618855,21225.0,21224.0,0.0112617]
[1673915440712,2.7708855,21225.0,21224.0,0.0112617]
[1673915440967,2.8618855,21225.0,21224.0,0.0112617]
[1673915441229,2.7708855,21225.0,21224.0,0.0112617]
[1673915441486,2.8618855,21225.0,21224.0,0.0112617]
[1673915442276,2.67462297,21225.0,21224.0,0.0112617]
[1673915442855,2.13979969,21225.0,21224.0,0.0112617]
[1673915443062,1.362598,21225.0,21224.0,0.0112617]
[1673915443563,1.567278,21225.0,21224.0,0.0112617]
[1673915443818,2.50390297,21225.0,21224.0,0.0112617]
[1673915444070,3.04694907,21225.0,21224.0,0.0112617]
[1673915444328,3.04694907,21225.0,21222.0,0.00977133]
[1673915444579,0.0752,21223.0,21222.0,0.00977133]
[1673915444834,2.49998297,21223.0,21222.0,0.00977133]
[1673915445085,3.12929697,21223.0,21222.0,0.00977133]
[1673915445342,3.60339914,21223.0,21222.0,0.00977133]
[1673915446369,3.69439914,21223.0,21222.0,0.00977133]
[1673915446635,4.87099914,21223.0,21215.0,0.01210372]
[1673915446889,0.28008,21218.0,21215.0,0.01210372]
[1673915447141,0.15,21216.0,21215.0,0.01210372]
[1673915447396,1.101184,21216.0,21215.0,0.01210372]
[1673915447650,1.721998,21216.0,21215.0,0.01210372]
[1673915448958,1.271998,21216.0,21215.0,0.01210372]
[1673915449252,0.951184,21216.0,21215.0,0.01210372]
[1673915449521,1.042184,21216.0,21215.0,0.01210372]
[1673915449756,1.5728484,21216.0,21215.0,0.01210372]
[1673915450285,1.362998,21216.0,21215.0,0.01210372]
[1673915450819,2.29019969,21216.0,21215.0,0.01210372]
[1673915451067,2.67422297,21216.0,21215.0,0.01210372]
[1673915451905,2.67428297,21216.0,21215.0,0.01210372]
[1673915452100,3.18208298,21216.0,21215.0,0.01210372]
[1673915452362,3.18208298,21216.0,21208.0,2.6293]
[1673915452363,0.0121,21215.0,21208.0,2.6293]
[1673915452642,0.27998,21212.0,21206.0,0.01269219]
[1673915452903,1.263756,21211.0,21206.0,0.01269219]
[1673915453189,0.951442,21211.0,21209.0,0.0751]
[1673915453967,0.620814,21210.0,21206.0,0.01269219]
[1673915454231,1.423001,21209.0,21206.0,0.01269219]
[1673915454517,0.47720169,21208.0,21206.0,0.01269219]
[1673915454782,2.11208097,21207.0,21206.0,0.01269219]
[1673915455042,2.74634169,21207.0,21206.0,0.01269219]
[1673915455307,3.43768027,21207.0,21206.0,0.01269219]
[1673915455564,2.52114169,21207.0,21206.0,0.01269219]
[1673915455831,2.04394,21207.0,21206.0,0.01269219]
[1673915456125,1.74394,21207.0,21206.0,0.01269219]
[1673915456355,1.83494,21207.0,21206.0,0.01269219]
[1673915457412,2.13494,21207.0,21206.0,0.01269219]
[1673915458184,3.07136497,21207.0,21206.0,0.01269219]
[1673915459216,2.68734169,21207.0,21206.0,0.01269219]
[1673915459468,3.06770006,21207.0,21206.0,0.01269219]
[1673915459729,3.45172334,21207.0,21206.0,0.01269219]
[1673915459982,3.45033061,21207.0,21206.0,0.01269219]
[1673915460759,3.52573061,21207.0,21206.0,0.01269219]
[1673915461013,3.52579061,21207.0,21206.0,0.01269219]
[1673915461268,3.52579061,21207.0,21200.0,0.002101]
[1673915461269,3.81269061,21207.0,21200.0,0.002101]
[1673915461535,0.20468,21201.0,21200.0,0.002101]
[1673915461801,0.901225,21201.0,21200.0,0.002101]
[1673915462061,2.72655169,21201.0,21200.0,0.002101]
[1673915462362,3.18577497,21201.0,21200.0,0.002101]
[1673915462583,3.18577497,21201.0,21197.0,0.01435431]
[1673915462584,3.26057497,21201.0,21197.0,0.01435431]
[1673915462839,0.20468,21198.0,21195.0,0.00725697]
[1673915463110,2.59222428,21197.0,21195.0,0.00725697]
[1673915463376,1.895556,21197.0,21195.0,0.00725697]
[1673915463634,0.321145,21196.0,21195.0,0.00725697]
[1673915463911,0.15,21195.0,21191.0,0.0747]
[1673915464174,0.35458,21192.0,21187.0,0.5861]
[1673915464432,0.35458,21192.0,21185.0,0.00101]
[1673915464433,1.08056828,21191.0,21185.0,0.00101]
[1673915464690,0.53402328,21190.0,21185.0,0.00101]
[1673915465025,0.0085,21189.0,21185.0,0.07571]
[1673915465255,0.935408,21189.0,21185.0,0.07571]
[1673915465500,0.0085,21188.0,21185.0,0.07571]
[1673915465772,0.471987,21187.0,21185.0,0.00101]
[1673915466038,0.0085,21186.0,21185.0,0.00101]
[1673915466353,0.08158,21186.0,21185.0,0.00101]
[1673915466572,0.6646305,21186.0,21185.0,0.00101]
[1673915466836,0.6646305,21186.0,21179.0,0.6123]
[1673915466837,0.9646305,21186.0,21179.0,0.6123]
[1673915467111,0.944112,21184.0,21179.0,0.6123]
[1673915467376,1.04724501,21183.0,21179.0,0.5376]
[1673915467664,1.04724501,21183.0,21178.0,0.0747]
[1673915467665,0.943248,21182.0,21178.0,0.0747]
[1673915467900,0.943248,21182.0,21176.0,0.0749]
[1673915467901,0.0085,21181.0,21176.0,0.0749]
[1673915468155,1.265453,21180.0,21174.0,0.0751]
[1673915468414,0.0085,21179.0,21176.0,0.01435431]
[1673915468672,0.1585,21179.0,21176.0,0.19508026]
[1673915468952,0.68580001,21178.0,21176.0,0.00435431]
[1673915469237,0.0085,21179.0,21178.0,0.24409461]
[1673915469486,0.09008,21179.0,21178.0,0.321145]
[1673915469740,0.59187301,21179.0,21176.0,0.07905431]
[1673915470534,0.59187301,21179.0,21176.0,0.00435431]
[1673915470535,0.67034612,21179.0,21176.0,0.00435431]
[1673915470805,0.59187301,21179.0,21176.0,0.00435431]
[1673915471095,0.0754,21177.0,21176.0,0.00435431]
[1673915471368,0.15,21176.0,21168.0,0.0756]
[1673915471672,1.54107115,21175.0,21167.0,0.0189]
[1673915471959,0.20468,21173.0,21168.0,0.19072595]
[1673915472221,1.266012,21174.0,21171.0,0.0754]
[1673915472222,0.1129,21172.0,21171.0,0.0754]
[1673915472491,0.593721,21172.0,21167.0,0.0189]
[1673915472761,0.62144,21171.0,21167.0,0.0189]
[1673915473039,2.29115469,21170.0,21167.0,0.03795291]
[1673915473345,0.32144,21169.0,21167.0,0.03795291]
[1673915473625,0.77144,21168.0,21167.0,0.03795291]
[1673915473887,3.13769657,21168.0,21167.0,0.03795291]
[1673915474221,3.02935469,21168.0,21167.0,0.03795291]
[1673915474671,3.41777657,21168.0,21167.0,0.03795291]
[1673915474932,0.03794909,21167.0,21156.0,0.00727035]
[1673915475191,0.0747,21163.0,21156.0,0.00727035]
[1673915475452,0.78446188,21162.0,21156.0,0.00727035]
[1673915475718,0.0754,21157.0,21156.0,0.00727035]
[1673915475981,2.42095557,21157.0,21156.0,0.00727035]
[1673915476259,3.04785463,21157.0,21156.0,0.00727035]
[1673915476517,2.72095557,21157.0,21156.0,0.00727035]
[1673915477036,2.72095557,21157.0,21156.0,7.035e-05]
[1673915477308,2.70099544,21157.0,21151.0,0.001]
[1673915477593,0.20268,21154.0,21140.0,0.00354776]
[1673915477876,0.6,21151.0,21140.0,0.00354776]
[1673915478341,0.1506,21141.0,21140.0,0.00354776]
[1673915478616,2.27906286,21141.0,21140.0,0.00354776]
[1673915478883,0.00354,21140.0,21128.0,0.15]
[1673915479151,0.20268,21136.0,21128.0,0.15]
[1673915479418,0.20268,21136.0,21126.0,0.00019]
[1673915479419,0.0752,21133.0,21126.0,0.00019]
[1673915479699,0.47720169,21133.0,21132.0,0.0749]
[1673915479962,0.2232,21134.0,21132.0,0.0749]
[1673915479963,0.2232,21134.0,21132.0,0.94102595]
[1673915480229,0.2232,21134.0,21133.0,1.39461747]
[1673915480508,0.2232,21134.0,21133.0,1.12849152]
[1673915481362,0.2232,21134.0,21133.0,1.20309152]
[1673915481625,0.00035477,21139.0,21133.0,2.06851747]
[1673915481895,0.00035477,21139.0,21137.0,0.6]
[1673915482213,0.3431388,21149.0,21138.0,0.98936764]
[1673915482471,0.020268,21153.0,21148.0,0.1508]
[1673915482741,0.34257617,21155.0,21148.0,0.1508]
[1673915482742,0.15,21155.0,21151.0,0.0747]
[1673915483009,0.472678,21157.0,21152.0,0.19072595]
[1673915483010,0.47720169,21153.0,21152.0,0.19072595]
[1673915483276,0.32144,21153.0,21152.0,0.19072595]
[1673915483568,0.472635,21158.0,21152.0,0.34012595]
[1673915483827,0.92559,21161.0,21153.0,0.26612595]
[1673915483828,0.15,21156.0,21153.0,0.26612595]
[1673915484089,0.51454572,21161.0,21155.0,0.0754]
[1673915484090,0.34163572,21161.0,21155.0,0.0754]
[1673915484361,1.072543,21163.0,21156.0,0.19072595]
[1673915484362,0.472543,21163.0,21156.0,0.19072595]
[1673915484616,0.472543,21163.0,21158.0,0.0751]
[1673915484617,0.15,21160.0,21158.0,0.0751]
[1673915485149,0.47248,21165.0,21158.0,0.17322693]
[1673915485150,0.47248,21165.0,21159.0,0.1506]
[1673915485407,0.15,21166.0,21163.0,0.0754]
[1673915485682,0.93243989,21166.0,21164.0,0.17322693]
[1673915485958,0.93243989,21166.0,21157.0,0.0749]
[1673915485959,1.39864169,21165.0,21157.0,0.0749]
[1673915486224,1.39864169,21165.0,21158.0,0.17322693]
[1673915486225,0.89774437,21164.0,21158.0,0.17322693]
[1673915486482,0.89774437,21164.0,21155.0,0.17036]
[1673915486483,0.19072595,21164.0,21161.0,0.0754]
[1673915486746,0.15,21166.0,21161.0,0.24862693]
[1673915487016,0.472372,21170.0,21162.0,0.24842693]
[1673915487273,0.645215,21173.0,21165.0,0.0754]
[1673915487554,0.15,21172.0,21166.0,0.17322693]
[1673915487824,0.66792764,21172.0,21171.0,0.0754]
[1673915488087,0.02350057,21170.0,21160.0,0.15]
[1673915488356,0.02350057,21170.0,21157.0,0.16824]
[1673915488357,0.80268,21166.0,21157.0,0.0754]
[1673915488611,0.472516,21164.0,21156.0,0.0755]
[1673915489147,0.51216595,21163.0,21156.0,0.0755]
[1673915489150,1.4976739,21163.0,21153.0,0.0761]
[1673915489412,0.19072595,21162.0,21154.0,0.17322693]
[1673915489700,0.6,21159.0,21150.0,0.0752]
[1673915490254,1.17966942,21158.0,21147.0,0.0759]
[1673915490459,0.6,21156.0,21147.0,0.0759]
[1673915490679,1.52935537,21155.0,21147.0,0.0759]
[1673915490941,1.52935537,21155.0,21141.0,0.0751]
[1673915490942,0.6749,21153.0,21141.0,0.0751]
[1673915491202,1.54564,21150.0,21140.0,0.00019]
[1673915491468,0.7014,21147.0,21140.0,0.00019]
[1673915491737,0.6,21144.0,21140.0,0.00019]
[1673915492001,0.0749,21142.0,21140.0,0.00019]
[1673915492267,0.32144,21141.0,21133.0,0.97186152]
[1673915492537,0.89719856,21140.0,21134.0,0.0751]
[1673915492819,0.89719856,21140.0,21133.0,0.80705152]
[1673915492820,0.37934581,21139.0,21133.0,0.80705152]
[1673915493055,0.7147,21137.0,21133.0,0.80705152]
[1673915493317,0.6393,21137.0,21134.0,0.17072692]
[1673915493584,0.6393,21137.0,21136.0,0.1507]